{"text_format":"1","workbook":"xlsx","n_sheets":12,"sheets":["Порядок работы","Список предварит док","№1","№1.1","№2","№3","№4","№5","Расшифровки","Обязательства","Целевое НОВОЕ","Баланс и ОФР"],"not_rendered":{"charts":0,"images":1,"macros":0,"external_links":0,"defined_names":43,"comments":0,"pivot_tables":0},"unopened":[],"bounds":{"document_bytes":16777216,"sheet_cells":100000,"rows_first":2000,"rows_last":500,"rows_between":2000,"halvings":0,"cell_chars":16384,"cell_head_chars":4096},"cells_cut":0,"cells_raw":0,"read":"whole","date_system":"1900"}

{"sheet":"Порядок работы","index":0,"n_rows":19,"n_cols":2,"rows_kept":19,"cut":false,"hidden":true,"merged":[[16,1,16,19],[18,1,18,19],[12,1,12,19],[14,1,14,19],[5,1,6,19],[8,1,8,19],[10,1,10,19]]}
[]
[]
[]
[]
[]
[null,"ПОРЯДОК РАБОТЫ ПО ПОЛУЧЕНИЮ ФИНАНСИРОВАНИЯ "]
[]
[]
[null,"1 ШАГ. Предоставление сокращенного списка документов для проведения предварительного анализа Вашего предприятия на отсутствие стоп-  и риск- факторов, а так же предварительного структурирования сделки. \nСм. вкладку \"Список  предварит.док.\""]
[]
[null,"2 ШАГ. Проведение предварительного анализа Вашей организации и планируемой структуры сделки.\nПри наличии предоставленных документов согласно краткому списку, проводится проверка организации, уточнение вопросов по структуре сделки и по деятельности компании, на основании чего принимается предварительное решение о возможности предоставления финансирования, и информирование Вас о данном решении."]
[]
[null,"3 ШАГ. Сбор полного пакета документов и проведение проверки компании и учавствующих в сделке физических и юридических лиц, оценки финансового состояния компании, оценки залога (при наличии).\nПолный список документов будет отправлен в случае, если по результату предварительного анализа (п. 2) будет принято предварительное решение о возможности предоставления финансирования."]
[]
[null,"4 ШАГ. Решение кредитного комитета Банка \nВ рамках решения принимаются окончательные условия финансирования.\nСрок действия решения  - 1 месяц"]
[]
[null,"5 ШАГ. Заключение договоров с Банком \nПри наличии положительного решения кредитного комитета Банка."]
[]
[null,"6 ШАГ. Выдача денежных средств "]

{"sheet":"Список предварит док","index":1,"n_rows":20,"n_cols":3,"rows_kept":20,"cut":false,"hidden":true,"merged":[[0,25,1,29],[20,23,20,28],[5,1,5,28],[7,1,7,28],[11,1,11,28],[15,1,15,28],[17,2,17,28],[19,2,19,28],[13,1,13,28],[3,1,3,28],[9,1,9,28]]}
[]
[]
[]
[null,"!!! Обращаем внимание на необходимость заполнения всех полей Анкет (п.1-3). В случае отсутствия информации по какому-либо из полей, в нем необходимо проставить слово \"нет\""]
[]
[null,"СПИСОК ПРЕДВАРИТЕЛЬНЫХ ДОКУМЕНТОВ"]
[]
[null,"1. ЗАЯВЛЕНИЕ-АНКЕТА НА ПОЛУЧЕНИЕ ПРЕДВАРИТЕЛЬНОГО ОДОБРЕНИЯ ВЫДАЧИ КРЕДИТА (ИП и юридические лица, за исключением лизинговых компаний)\na вкладка \"№ 1\" (форма для заполнения)\nЗаполняет:\n- Заемщик - юридическое лицо \n- Заемщик - индивидуальный предприниматель \n• с печатью и подписью в сканированном виде\n• в электронном виде (заполненная вкладка данного файла)\n"]
[]
[null,"1.1. ЗАЯВЛЕНИЕ-АНКЕТА НА ПОЛУЧЕНИЕ ПРЕДВАРИТЕЛЬНОГО ОДОБРЕНИЯ ВЫДАЧИ КРЕДИТА (лизинговые компании)\na вкладка \"№ 1.1.\" (форма для заполнения)\nЗаполняет:\n- Заемщик - лизинговая компания\n• с печатью и подписью в сканированном виде\n• в электронном виде (заполненная вкладка данного файла)\n"]
[]
[null,"2.  АНКЕТА УЧАСТНИКА СДЕЛКИ - ФИЗИЧЕСКОГО ЛИЦА\na вкладка \"№2\" (форма для заполнения)\nЗаполняет:\n- Руководитель, Учредитель(ли) или (Акционер(ы)): \n    › Заемщика - юридического лица\n- Заемщик - индивидуальный предприниматель \n• при наличии в Заявлении -Анкете от Заемщика (Приложение №1) третьего лица (не являющегося Заемщиком):\nЗаполняет:\n- Залогодатель (ли) - физическое лицо / индивидуальный предприниматель\n- Поручитель (ли) - физическое лицо / индивидуальный предприниматель \n• с печатью и подписью в сканированном виде\n• в электронном виде (данный файл)\n"]
[]
[null,"3. АНКЕТА ПОРУЧИТЕЛЯ / ЗАЛОГОДАТЕЛЯ (юридические лица) \na  вкладка \"Приложение №3\" (форма для заполнения)\n• при наличии в Заявлении -Анкете от Заемщика (Приложение №1) третьего лица (не являющегося Заемщиком):\nЗаполняет:\n-  Залогодатель (ли)  - юридическое лицо  \n-  Поручитель (ли) - юридическое лицо\n• с печатью и подписью в сканированном виде\n• в электронном виде (заполненная вкладка данного файла)"]
[]
[null,"4. Финансовые документы, в зависимости от ораганизационно - правовой формы и применяемой системы налогообложения:"]
[]
[null,null,"4.1. Юридические лица (ООО, АО и пр.) применяющие ОСНО / УСН / ЕСХН и Индивидуальные предприниматели применяющие ОСНО   \na вкладка \"№4\""]
[]
[null,null,"4.2. Индивидуальные предприниматели, за исключением ИП применяющих ОСНО\na  вкладка \"№5\""]

{"sheet":"№1","index":2,"n_rows":127,"n_cols":14,"rows_kept":127,"cut":false,"hidden":false,"merged":[[8,4,8,9],[9,4,9,9],[8,1,8,3],[9,1,9,3],[19,1,21,2],[19,3,21,4],[19,5,21,5],[19,6,21,8],[19,9,21,9],[68,11,102,11],[102,1,102,2],[102,3,102,4],[102,5,102,6],[102,7,102,9],[97,1,97,2],[97,3,97,4],[97,5,97,9],[98,1,98,2],[98,3,98,4],[98,5,98,9],[95,1,95,2],[84,4,84,9],[95,3,95,4],[95,5,95,9],[96,1,96,2],[96,3,96,4],[100,3,100,4],[100,5,100,6],[100,7,100,9],[101,1,101,2],[91,3,91,4],[91,5,91,7],[91,8,91,9],[86,1,86,9],[103,5,103,6],[103,7,103,9],[96,5,96,9],[100,1,100,2],[103,1,103,2],[103,3,103,4],[91,1,91,2],[88,5,88,7],[88,8,88,9],[101,3,101,4],[101,5,101,6],[101,7,101,9],[93,1,93,9],[88,1,88,2],[88,3,88,4],[11,1,11,2],[11,4,11,5],[11,7,11,9],[22,1,24,2],[22,4,22,9],[23,4,23,9],[24,4,24,9],[14,1,14,2],[14,3,14,9],[16,6,16,8],[17,6,17,8],[18,6,18,8],[15,6,15,8],[73,3,73,9],[81,5,81,9],[82,4,82,9],[70,1,73,2],[70,3,70,9],[71,3,71,9],[72,3,72,9],[122,4,122,9],[66,3,66,4],[117,1,117,9],[105,1,105,9],[68,1,68,9],[89,3,89,4],[89,5,89,7],[89,8,89,9],[90,1,90,2],[90,3,90,4],[90,8,90,9],[89,1,89,2],[90,5,90,7],[114,1,114,9],[111,1,111,9],[112,1,112,9],[108,1,108,9],[76,4,76,9],[77,4,77,9],[78,4,78,9],[79,4,79,9],[80,3,80,9],[75,1,84,2],[75,4,75,9],[83,4,83,9],[59,3,59,4],[63,5,63,6],[63,7,63,9],[63,1,63,2],[63,3,63,4],[59,1,59,2],[60,1,60,2],[60,3,60,4],[59,5,59,9],[60,5,60,9],[61,5,61,9],[64,5,64,6],[61,1,61,2],[61,3,61,4],[64,7,64,9],[64,1,64,2],[64,3,64,4],[65,7,65,9],[66,7,66,9],[65,5,65,6],[66,5,66,6],[65,1,65,2],[65,3,65,4],[66,1,66,2],[54,8,54,9],[52,8,52,9],[56,1,56,9],[58,1,58,2],[58,3,58,4],[52,1,52,2],[54,1,54,2],[52,3,52,4],[54,3,54,4],[52,5,52,7],[54,5,54,7],[58,5,58,9],[53,1,53,2],[53,3,53,4],[53,5,53,7],[53,8,53,9],[33,1,36,2],[34,3,34,9],[35,3,35,9],[36,3,36,9],[31,1,31,9],[46,4,46,9],[39,4,39,9],[49,1,49,9],[51,1,51,2],[51,3,51,4],[51,8,51,9],[51,5,51,7],[44,5,44,9],[45,4,45,9],[47,4,47,9],[38,1,47,2],[43,3,43,9],[38,4,38,9],[40,4,40,9],[41,4,41,9],[42,4,42,9],[58,13,58,23],[3,1,3,9],[5,1,5,9],[7,1,7,3],[7,4,7,9],[12,6,12,9],[10,1,10,3],[10,4,10,9],[13,1,13,2],[0,13,3,18],[0,7,0,9],[15,1,18,2],[15,3,15,4],[16,3,16,4],[17,3,17,4],[18,3,18,4],[13,3,13,9],[29,1,29,9],[33,3,33,9],[25,4,25,9],[15,13,15,20],[26,4,26,9],[27,4,27,9],[25,1,27,2]]}
[null,null,null,null,null,null,null,"Приложение №1",null,null,null,null,null,"Заполняет:\n• Заемщик - Юридическое лицо (организация)\n• Заемщик - Индивидуальный предприниматель, "]
[]
[null,null,null,null,"                                                            "]
[null," ЗАЯВЛЕНИЕ-АНКЕТА \nНА ПОЛУЧЕНИЕ  КРЕДИТА\n (юридические лица и индивидуальные предприниматели)"]
[]
[null,"Данные о заявителе"]
[]
[null,"Полное наименование организации или Ф.И.О. индивидуального предпринимателя"]
[null,"Сокращенное наименование  организации или Ф.И.О. индивидуального предпринимателя"]
[null,"Фирменное наименование организации или Ф.И.О. индивидуального предпринимателя "]
[null,"Паспортные данные для ИП \n(серия и номер, кем и когда выдан, код подразделения)"]
[null,"Свидетельство о регистрации",null,"Номер",null,null,"Дата "]
[null,"ИНН",null,"КПП",null,"ОГРН/ОГРНИП"]
[null,"Юридический адрес \n(адрес местонахождения согласно учредительным документам)"]
[null,"Фактический адрес \n(адрес местонахождения единоличного исполнительного органа, печати организации / ИП)"]
[null,"Данные по владельцам бизнеса",null,"Наименование организации / ФИО ",null,"Учредитель / Конечный бенефициар *","ИНН (для учредителя ЮЛ) / Паспортные данные (для учредителя ФЛ)",null,null,"Доля",null,null,null,"* Конечный бенефициар - это лицо или несколько лиц, которые косвенно владеют юридическим лицом или оказывают существенное влияние на принятие им решений, при этом не является учредителем / акционером организации"]
[null,null,null,null,null,null,null,null,null,null,null,null,null,"При необходимости добавить дополнительную строчку"]
[]
[]
[null,"Сведения о правопреемстве (полное, сокращенное наименование, ОГРН)"]
[]
[]
[null,"Контактные данные Руководителя организации / ИП",null,"ФИО "]
[null,null,null,"Номер телефона"]
[null,null,null,"Электронная почта"]
[null,"Контактное лицо для взаимодействия с банком",null,"ФИО - Должность"]
[null,null,null,"Номер телефона"]
[null,null,null,"Электронная почта"]
[]
[null,"Запрашиваемые условия кредита",null,null,"Запрашиваемые условия кредита:"]
[]
[null,"Сублимит 1"]
[]
[null,"Форма договора",null,"            кредит по графику",null,null,null,null,null,null,null,null,null,"Отметить вариант"]
[null,null,null,"            кредитная линия с лимитом задолженности"]
[null,null,null,"            кредитная линия с лимитом выдачи "]
[null,null,null,"            кредит в форме овердрафт "]
[null,"Сумма кредита",null,"Срок кредита, мес.",null,"Ставка"]
[null,"Цель получения кредита",null,null,"Пополнение оборотных средств  / Финансирование текущей деятельности (приобретение сырья, расчеты с контрагентами и т.п.)",null,null,null,null,null,null,null,null,"Отметить вариант"]
[null,null,null,null,"Инвестиционные цели"]
[null,null,null,null,"Приобретение транспорта и спецтехники"]
[null,null,null,null,"Приобретение оборудования"]
[null,null,null,null,"Приобретение недвижимости"]
[null,null,null,"Размер собственного участия (для кредитов на инвестиционные цели)"]
[null,null,null,"указать",null,"% от стоимости приобретаемого актива"]
[null,null,null,null,"Рефинансирование кредита другого Банка"]
[null,null,null,null,"Другие цели"]
[null,null,null,"указать"]
[]
[null,"Предлагаемое обеспечение по кредиту (залог)",null,"Предлагаемое обеспечение по кредиту (залог):"]
[]
[null,"Вид обеспечения \n(наименование объектов залога)",null,"Владелец \n - ЮЛ: наименование, ИНН \n - ФЛ: Ф.И.О. паспорт.данные, ИНН",null,"Данные о залоге:\n - Кадастровый номер (недвижимость), \n - VIN номер (транспорт, год выпуска), \n - Спецификация (оборудование) и пр.",null,null,"Рыночная стоимость\n(тыс.руб.)"]
[null,null,null,null,null,null,null,null,null,null,null,null,null,"При необходимости добавить дополнительную строчку"]
[]
[]
[]
[null,"Возможные гаранты, поручители"]
[]
[null,"Наименование предприятия\n(юридическое лицо)",null,"Адрес регистрации",null,"ИНН",null,null,null,null,null,null,null,"!!! Согласно стандартным требованиям банка поручителями должны выступать собственники бизнеса / учредители компании / руководитель компании (как сотрудник отвечающий за финансово - хозяйственную деятельность компании"]
[null,null,null,null,null,null,null,null,null,null,null,null,null,"При необходимости добавить дополнительную строчку"]
[]
[]
[]
[null,"Ф.И.О.\n(физическое лицо)",null,"Адрес регистрации",null,"ИНН",null,"Паспортные данные"]
[null,null,null,null,null,null,null,null,null,null,null,null,null,"При необходимости добавить дополнительную строчку"]
[]
[]
[null,null,null,null,null,null,null,null,null,null,null,"_______________"]
[null,"Сублимит 2",null,null,null,null,null,null,null,null,null,"УДАЛИТЬ ПРИ ОТСУТСТВИИ НЕОБХОДИМОСТИ ДРУГОГО ПРОДУКТА  УДАЛИТЬ ПРИ ОТСУТСТВИИ НЕОБХОДИМОСТИ ДРУГОГО ПРОДУКТА "]
[]
[null,"Форма договора",null,"            кредит по графику",null,null,null,null,null,null,null,null,null,"Отметить вариант"]
[null,null,null,"            кредитная линия с лимитом задолженности"]
[null,null,null,"            кредитная линия с лимитом выдачи "]
[null,null,null,"            кредит в форме овердрафт "]
[null,"Сумма кредита",null,"Срок кредита, мес.",null,"Ставка"]
[null,"Цель получения кредита",null,null,"Пополнение оборотных средств  / Финансирование текущей деятельности (приобретение сырья, расчеты с контрагентами и т.п.)",null,null,null,null,null,null,null,null,"Отметить вариант"]
[null,null,null,null,"Инвестиционные цели"]
[null,null,null,null,"Приобретение транспорта и спецтехники"]
[null,null,null,null,"Приобретение оборудования"]
[null,null,null,null,"Приобретение недвижимости"]
[null,null,null,"Размер собственного участия (для кредитов на инвестиционные цели)"]
[null,null,null,"указать",null,"% от стоимости приобретаемого актива"]
[null,null,null,null,"Рефинансирование кредита другого Банка"]
[null,null,null,null,"Другие цели"]
[null,null,null,"указать"]
[]
[null,"Предлагаемое обеспечение по кредиту (залог)",null,"Предлагаемое обеспечение по кредиту (залог):"]
[]
[null,"Вид обеспечения \n(наименование объектов залога)",null,"Владелец \n - ЮЛ: наименование, ИНН \n - ФЛ: Ф.И.О. паспорт.данные, ИНН",null,"Данные о залоге:\n - Кадастровый номер (недвижимость), \n - VIN номер (транспорт, год выпуска), \n - Спецификация (оборудование) и пр.",null,null,"Рыночная стоимость\n(тыс.руб.)"]
[null,null,null,null,null,null,null,null,null,null,null,null,null,"При необходимости добавить дополнительную строчку"]
[]
[]
[]
[null,"Возможные гаранты, поручители"]
[]
[null,"Наименование предприятия\n(юридическое лицо)",null,"Адрес регистрации",null,"ИНН"]
[null,null,null,null,null,null,null,null,null,null,null,null,null,"При необходимости добавить дополнительную строчку"]
[]
[]
[]
[null,"Ф.И.О.\n(физическое лицо)",null,"Адрес регистрации",null,"ИНН",null,"Паспортные данные"]
[null,null,null,null,null,null,null,null,null,null,null,null,null,"При необходимости добавить дополнительную строчку"]
[]
[null,null,null,null,null,null,null,null,null,null,null,"_______________"]
[]
[null,"Подтверждаем, что предоставленная информация  в данном Заявлении - Анкете является подлинной, соответствует действительности и выражаю согласие на проведение дальнейшей проверки ее достоверност и на проведение дальнейшего анализа предприятия. Не возражаем против посещения сотрудником Банка места ведения бизнеса предприятия и готовы предоставить ему всю необходимую информацию. В случае изменения указанных в данном Заявлении - Анкете сведений в течение действия кредитного договора, обязуемся в трехдневный срок сообщить о произошедших изменениях в АО «Автоградбанк»."]
[null,"     ","ДА",null,"     ","НЕТ",null,null,null,null,null,null,null,"Отметить вариант"]
[]
[null,"Подтверждаем согласие на осуществление АО «Автоградбанк  обработки персональных данных, указанных в настоящем Заявлении -  Анкете, а также предоставленных устно представителю АО «Автоградбанк», а именно: сбор, систематизацию, накопление, хранение, уточнение (обновление, изменение), использование,  распространение (в случаях прямо предусмотренных действующим законодательством РФ с соблюдением требований банковской тайны), обезличивание, блокирование, уничтожение  с использованием, как автоматизированной информационной системы, так и бумажных носителей,  персональных данных, в соответствии с требованиями Федерального Закона от 27.07.2006 №152-ФЗ «О персональных данных». Обработка данных проводится с целью осуществления банковского обслуживания Клиента, предоставления отчетности государственным надзорным органам, предоставления Клиенту сведений уведомительного или маркетингового характера, включая информацию о новых банковских продуктах, услугах, проводимых акциях, мероприятиях, в том числе с использованием средств связи.Отзыв согласия на обработку персональных данных производится путем подачи в АО «Автоградбанк» соответствующего письменного заявления, направленного на почтовый адрес Банка либо врученного лично под расписку сотруднику Банка. Согласие выдано на неопределенный срок. Данное согласие действует с момента подписания  до даты его отзыва, до достижения целей обработки и истечения сроков хранения, определяемых в соответствии с действующим законодательством Российской Федерации и нормативными документами Банка России."]
[null,"     ","ДА",null,"     ","НЕТ",null,null,null,null,null,null,null,"Отметить вариант"]
[]
[null,"Банк оставляет за собой право обращаться к любому лицу предприятия - Заявителя, которое может оказать содействие в принятии решения относительно предоставления или непредставления кредита Заявителю, указанному в настоящем Заявлении -  Анкете. \nЕсли Заявитель по тем или иным причинам не желает, чтобы кто-нибудь был осведомлен о настоящей заявке, то следует указать имя (наименование) указанного лица и причину нежелания: "]
[null,"     ",null,null,null,null,null,null,null,null,null,null,null,"При необходимости добавить дополнительную строчку"]
[]
[null,"Заявитель выражает свое согласие на предоставление АО «Автоградбанк»  в целях формирования кредитной истории Заявителя всех необходимых сведений о Заявителе, о его обязательствах и иной содержащейся в настоящей Заявке  и в сопутствующих документах информации, предусмотренной Федеральным Законом «О кредитных историях»,  в ОАО «Национальное бюро кредитных историй» (ОАО «НБКИ») "]
[null,"     ","ДА",null,"     ","НЕТ",null,null,null,null,null,null,null,"Отметить вариант"]
[]
[null,"Заявитель выражает согласие на получение АО «Автоградбанк» кредитных отчетов (информации, входящей в состав кредитной истории) из  ОАО «НБКИ» в соответствии с Федеральным Законом от 30.12.2004г. №218 –ФЗ «О кредитных историях» в целях получения банковских услуг."]
[null,"     ","ДА",null,"     ","НЕТ"]
[null,null,null,null,null,null,null,null,null,null,null,null,null,"Отметить вариант"]
[]
[null,"Подпись руководителя  __________________________ ",null,null,"_____________________________________________________________________________"]
[null,null,null,null," Ф.И.О. полностью "]
[]
[null,"Дата ______________________"]
[]
[null,"М.П.   "]

{"sheet":"№1.1","index":3,"n_rows":134,"n_cols":14,"rows_kept":134,"cut":false,"hidden":false,"merged":[[19,6,19,8],[98,1,98,3],[99,1,99,3],[98,4,98,9],[99,4,99,9],[109,3,109,4],[109,5,109,8],[69,11,109,11],[103,4,103,9],[104,4,104,9],[105,4,105,9],[106,1,109,2],[106,3,106,4],[106,5,106,8],[107,3,107,4],[107,5,107,8],[108,3,108,4],[108,5,108,8],[79,1,79,2],[80,3,80,9],[81,3,81,9],[85,5,85,9],[95,1,95,9],[97,1,97,3],[97,4,97,9],[100,1,100,3],[100,4,100,9],[92,5,92,6],[92,7,92,9],[93,5,93,6],[93,7,93,9],[88,5,88,9],[90,1,90,2],[90,3,90,4],[90,5,90,6],[90,7,90,9],[91,1,91,2],[91,3,91,4],[91,5,91,6],[91,7,91,9],[55,1,55,9],[58,1,58,3],[58,4,58,9],[59,6,59,9],[60,1,60,2],[61,1,63,2],[64,1,67,2],[61,4,61,9],[64,3,64,4],[64,5,64,8],[65,3,65,4],[57,1,57,3],[57,4,57,9],[60,3,60,9],[62,4,62,9],[63,4,63,9],[67,3,67,4],[67,5,67,8],[65,5,65,8],[66,3,66,4],[66,5,66,8],[85,13,85,23],[86,5,86,9],[87,5,87,9],[80,1,80,2],[75,1,75,9],[77,1,77,2],[72,3,72,9],[69,1,69,9],[71,1,72,2],[71,3,71,9],[87,3,87,4],[83,1,83,9],[85,1,85,2],[85,3,85,4],[81,1,81,2],[77,3,77,9],[78,1,78,2],[121,1,121,9],[124,1,124,9],[129,4,129,9],[37,3,37,9],[40,3,40,9],[41,1,41,2],[41,3,41,9],[112,1,112,9],[115,1,115,9],[118,1,118,9],[119,1,119,9],[101,6,101,9],[102,1,102,2],[102,3,102,9],[103,1,105,2],[93,1,93,2],[93,3,93,4],[88,1,88,2],[88,3,88,4],[92,1,92,2],[92,3,92,4],[86,1,86,2],[86,3,86,4],[87,1,87,2],[53,1,53,2],[53,3,53,4],[53,5,53,6],[53,7,53,9],[51,1,51,2],[51,3,51,4],[51,5,51,6],[51,7,51,9],[52,1,52,2],[52,3,52,4],[52,5,52,6],[52,7,52,9],[48,1,48,2],[48,3,48,4],[48,5,48,9],[50,1,50,2],[50,3,50,4],[50,5,50,6],[50,7,50,9],[45,13,45,23],[46,1,46,2],[46,3,46,4],[46,5,46,9],[47,1,47,2],[47,3,47,4],[47,5,47,9],[40,1,40,2],[43,1,43,9],[45,1,45,2],[45,3,45,4],[45,5,45,9],[38,1,38,2],[39,1,39,2],[35,1,35,9],[37,1,37,2],[27,1,27,9],[29,1,29,9],[31,1,32,2],[31,3,31,9],[32,3,32,9],[15,1,18,2],[15,3,15,4],[16,3,16,4],[17,3,17,4],[18,3,18,4],[15,6,15,8],[16,6,16,8],[17,6,17,8],[18,6,18,8],[20,1,22,2],[20,4,20,9],[21,4,21,9],[22,4,22,9],[23,1,25,2],[23,4,23,9],[24,4,24,9],[25,4,25,9],[19,1,19,2],[19,3,19,4],[15,13,15,20],[0,7,0,9],[0,13,3,18],[3,1,3,9],[5,1,5,9],[7,1,7,3],[7,4,7,9],[10,1,10,3],[10,4,10,9],[12,6,12,9],[13,1,13,2],[13,3,13,9],[14,1,14,2],[14,3,14,9],[11,1,11,2],[11,4,11,5],[11,7,11,9],[8,1,8,3],[9,1,9,3],[8,4,8,9],[9,4,9,9]]}
[null,null,null,null,null,null,null,"Приложение №1.1",null,null,null,null,null,"Заполняет:\n• Заемщик - Юридическое лицо (лизинговая компания)"]
[]
[null,null,null,null,"                                                            "]
[null," ЗАЯВЛЕНИЕ-АНКЕТА \nНА ПОЛУЧЕНИЕ  КРЕДИТА\n (лизинговые компании)"]
[]
[null,"Данные о заявителе"]
[]
[null,"Полное наименование организации или Ф.И.О. индивидуального предпринимателя"]
[null,"Сокращенное наименование организации или Ф.И.О. индивидуального предпринимателя"]
[null,"Фирменное наименование организации или Ф.И.О. индивидуального предпринимателя"]
[null,"Паспортные данные для ИП \n(серия и номер, кем и когда выдан, код подразделения)"]
[null,"Свидетельство о регистрации",null,"Номер",null,null,"Дата "]
[null,"ИНН",null,"КПП",null,"ОГРН/ОГРНИП"]
[null,"Юридический адрес \n(адрес местонахождения согласно учредительным документам)"]
[null,"Фактический адрес \n(адрес местонахождения единоличного исполнительного органа, печати организации / ИП)"]
[null,"Данные по владельцам бизнеса",null,"Наименование организации / ФИО ",null,"Учредитель / Конечный бенефициар *","ИНН (для учредителя ЮЛ) / Паспортные данные (для учредителя ФЛ)",null,null,"Доля",null,null,null,"* Конечный бенефициар - это лицо или несколько лиц, которые косвенно владеют юридическим лицом или оказывают существенное влияние на принятие им решений, при этом не является учредителем / акционером организации"]
[null,null,null,null,null,null,null,null,null,null,null,null,null,"При необходимости добавить дополнительную строчку"]
[]
[]
[null,"Сведения о правопреемстве (полное, сокращенное наименование, ОГРН)"]
[null,"Контактные данные Руководителя организации / ИП",null,"ФИО "]
[null,null,null,"Номер телефона"]
[null,null,null,"Электронная почта"]
[null,"Контактное лицо",null,"ФИО - Должность"]
[null,null,null,"Номер телефона"]
[null,null,null,"Электронная почта"]
[]
[null,"Запрашиваемые условия кредита",null,null,"Запрашиваемые условия кредита:"]
[]
[null,"Сублимит 1"]
[]
[null,"Форма договора",null,"            кредит по графику",null,null,null,null,null,null,null,null,null,"Отметить вариант"]
[null,null,null,"            кредитная линия с лимитом выдачи "]
[null,"Сумма кредита",null,"Срок кредита, мес.",null,"Ставка"]
[]
[null,"Предлагаемое обеспечение по кредиту (залог)",null,"Предлагаемое обеспечение по кредиту (залог):"]
[]
[null,"Предмет лизинга\n"]
[null,"Рыночная стоимость, руб.\n",null,2000000]
[null,"Сумма аванса, руб.\n",null,null,"% от стоимости",30]
[null,"Страхование предмета залога",null,"            ДА                          НЕТ"]
[null,"Наименование поставщика, ИНН\n"]
[]
[null,"Возможные гаранты, поручители"]
[]
[null,"Наименование предприятия\n(юридическое лицо)",null,"Адрес регистрации",null,"ИНН",null,null,null,null,null,null,null,"!!! Согласно стандартным требованиям банка поручителями должны выступать собственники бизнеса / учредители компании / руководитель компании (как сотрудник отвечающий за финансово - хозяйственную деятельность компании"]
[null,null,null,null,null,null,null,null,null,null,null,null,null,"При необходимости добавить дополнительную строчку"]
[]
[]
[]
[null,"Ф.И.О.\n(физическое лицо)",null,"Адрес регистрации",null,"ИНН",null,"Паспортные данные"]
[null,null,null,null,null,null,null,null,null,null,null,null,null,"При необходимости добавить дополнительную строчку"]
[]
[]
[]
[null,"Данные о лизингополучателе"]
[]
[null,"Наименование организации или Ф.И.О. индивидуального предпринимателя"]
[null,"(Паспортные данные для ИП)"]
[null,"ИНН",null,"КПП",null,"ОГРН/ОГРНИП"]
[null,"Местонахождение"]
[null,"Контактное лицо",null,"ФИО - Должность"]
[null,null,null,"Номер телефона"]
[null,null,null,"Электронная почта"]
[null,"Данные по владельцам бизнеса",null,"Наименование организации / ФИО ",null,"ИНН (для учредителя ЮЛ) / Паспортные данные (для учредителя ФЛ)",null,null,null,"Доля"]
[null,null,null,null,null,null,null,null,null,null,null,null,null,"При необходимости добавить дополнительную строчку"]
[]
[]
[null,null,null,null,null,null,null,null,null,null,null,"_______________"]
[null,"Сублимит 2",null,null,null,null,null,null,null,null,null,"УДАЛИТЬ ПРИ ОТСУТСТВИИ НЕОБХОДИМОСТИ ДРУГОГО ПРОДУКТА УДАЛИТЬ ПРИ ОТСУТСТВИИ НЕОБХОДИМОСТИ ДРУГОГО ПРОДУКТА"]
[]
[null,"Форма договора",null,"            кредит по графику",null,null,null,null,null,null,null,null,null,"Отметить вариант"]
[null,null,null,"            кредитная линия с лимитом выдачи "]
[null,"Сумма кредита",null,"Срок кредита, мес.",null,"Ставка"]
[]
[null,"Предлагаемое обеспечение по кредиту (залог)",null,"Предлагаемое обеспечение по кредиту (залог):"]
[]
[null,"Предмет лизинга\n"]
[null,"Рыночная стоимость, руб.\n",null,2000000]
[null,"Сумма аванса, руб.\n",null,null,"% от стоимости",30]
[null,"Страхование предмета залога",null,"            ДА                          НЕТ"]
[null,"Наименование поставщика, ИНН\n"]
[]
[null,"Возможные гаранты, поручители"]
[]
[null,"Наименование предприятия\n(юридическое лицо)",null,"Адрес регистрации",null,"ИНН",null,null,null,null,null,null,null,"!!! Согласно стандартным требованиям банка поручителями должны выступать собственники бизнеса / учредители компании / руководитель компании (как сотрудник отвечающий за финансово - хозяйственную деятельность компании"]
[null,null,null,null,null,null,null,null,null,null,null,null,null,"При необходимости добавить дополнительную строчку"]
[]
[]
[]
[null,"Ф.И.О.\n(физическое лицо)",null,"Адрес регистрации",null,"ИНН",null,"Паспортные данные"]
[null,null,null,null,null,null,null,null,null,null,null,null,null,"При необходимости добавить дополнительную строчку"]
[]
[]
[]
[null,"Данные о лизингополучателе"]
[]
[null,"Полное наименование организации или Ф.И.О. индивидуального предпринимателя"]
[null,"Сокращенное наименование организации или Ф.И.О. индивидуального предпринимателя"]
[null,"Фирменное наименование организации или Ф.И.О. индивидуального предпринимателя"]
[null,"(Паспортные данные для ИП)"]
[null,"ИНН",null,"КПП",null,"ОГРН/ОГРНИП"]
[null,"Местонахождение"]
[null,"Контактное лицо",null,"ФИО - Должность"]
[null,null,null,"Номер телефона"]
[null,null,null,"Электронная почта"]
[null,"Данные по владельцам бизнеса",null,"Наименование организации / ФИО ",null,"ИНН (для учредителя ЮЛ) / Паспортные данные (для учредителя ФЛ)",null,null,null,"Доля"]
[null,null,null,null,null,null,null,null,null,null,null,null,null,"При необходимости добавить дополнительную строчку"]
[]
[]
[]
[]
[null,"Подтверждаем, что предоставленная информация  в данном Заявлении - Анкете является подлинной, соответствует действительности и выражаю согласие на проведение дальнейшей проверки ее достоверност и на проведение дальнейшего анализа предприятия. Не возражаем против посещения сотрудником Банка места ведения бизнеса предприятия и готовы предоставить ему всю необходимую информацию. В случае изменения указанных в данном Заявлении - Анкете сведений в течение действия кредитного договора, обязуемся в трехдневный срок сообщить о произошедших изменениях в АО «Автоградбанк»."]
[null,"     ","ДА",null,"     ","НЕТ",null,null,null,null,null,null,null,"Отметить вариант"]
[]
[null,"Подтверждаем согласие на осуществление АО «Автоградбанк  обработки персональных данных, указанных в настоящем Заявлении -  Анкете, а также предоставленных устно представителю АО «Автоградбанк», а именно: сбор, систематизацию, накопление, хранение, уточнение (обновление, изменение), использование,  распространение (в случаях прямо предусмотренных действующим законодательством РФ с соблюдением требований банковской тайны), обезличивание, блокирование, уничтожение  с использованием, как автоматизированной информационной системы, так и бумажных носителей,  персональных данных, в соответствии с требованиями Федерального Закона от 27.07.2006 №152-ФЗ «О персональных данных». Обработка данных проводится с целью осуществления банковского обслуживания Клиента, предоставления отчетности государственным надзорным органам, предоставления Клиенту сведений уведомительного или маркетингового характера, включая информацию о новых банковских продуктах, услугах, проводимых акциях, мероприятиях, в том числе с использованием средств связи. Отзыв согласия на обработку персональных данных производится путем подачи в АО «Автоградбанк» соответствующего письменного заявления, направленного на почтовый адрес Банка либо врученного лично под расписку сотруднику Банка. Согласие выдано на неопределенный срок. Данное согласие действует с момента подписания  до даты его отзыва, до достижения целей обработки и истечения сроков хранения, определяемых в соответствии с действующим законодательством Российской Федерации и нормативными документами Банка России."]
[null,"     ","ДА",null,"     ","НЕТ",null,null,null,null,null,null,null,"Отметить вариант"]
[]
[null,"Банк оставляет за собой право обращаться к любому лицу предприятия - Заявителя, которое может оказать содействие в принятии решения относительно предоставления или непредставления кредита Заявителю, указанному в настоящем Заявлении -  Анкете. \nЕсли Заявитель по тем или иным причинам не желает, чтобы кто-нибудь был осведомлен о настоящей заявке, то следует указать имя (наименование) указанного лица и причину нежелания: "]
[null,"     ",null,null,null,null,null,null,null,null,null,null,null,"При необходимости добавить дополнительную строчку"]
[]
[null,"Заявитель выражает свое согласие на предоставление АО «Автоградбанк»  в целях формирования кредитной истории Заявителя всех необходимых сведений о Заявителе, о его обязательствах и иной содержащейся в настоящей Заявке  и в сопутствующих документах информации, предусмотренной Федеральным Законом «О кредитных историях»,  в ОАО «Национальное бюро кредитных историй» (ОАО «НБКИ») "]
[null,"     ","ДА",null,"     ","НЕТ",null,null,null,null,null,null,null,"Отметить вариант"]
[]
[null,"Заявитель выражает согласие на получение АО «Автоградбанк» кредитных отчетов (информации, входящей в состав кредитной истории) из  ОАО «НБКИ» в соответствии с Федеральным Законом от 30.12.2004г. №218 –ФЗ «О кредитных историях» в целях получения банковских услуг."]
[null,"     ","ДА",null,"     ","НЕТ"]
[null,null,null,null,null,null,null,null,null,null,null,null,null,"Отметить вариант"]
[]
[null,"Подпись руководителя  __________________________ ",null,null,"_____________________________________________________________________________"]
[null,null,null,null," Ф.И.О. полностью "]
[]
[null,"Дата ______________________"]
[]
[null,"М.П.   "]

{"sheet":"№2","index":4,"n_rows":64,"n_cols":15,"rows_kept":64,"cut":false,"hidden":false,"merged":[[9,1,9,3],[9,4,9,10],[14,1,14,3],[14,4,14,10],[49,1,49,10],[52,1,52,10],[55,1,55,10],[15,1,15,3],[15,4,15,10],[16,1,16,3],[16,4,16,10],[17,1,17,3],[17,4,17,10],[18,1,18,3],[18,4,18,10],[22,1,25,2],[22,4,22,10],[23,4,23,10],[61,4,61,10],[42,1,42,10],[45,1,45,8],[45,9,45,10],[46,1,46,8],[46,9,46,10],[47,1,47,8],[47,9,47,10],[57,1,57,10],[25,4,25,10],[24,4,24,10],[19,1,21,2],[19,4,19,10],[20,4,20,10],[21,4,21,10],[32,1,32,3],[32,4,32,10],[33,1,33,3],[33,4,33,10],[26,1,30,2],[26,4,26,10],[27,4,27,10],[29,4,29,10],[30,4,30,10],[28,4,28,10],[13,1,13,3],[13,4,13,10],[40,1,40,3],[40,4,40,10],[44,9,44,10],[44,1,44,8],[39,1,39,3],[39,4,39,10],[34,1,38,2],[34,4,34,10],[35,4,35,10],[36,4,36,10],[37,4,37,10],[38,4,38,10],[31,1,31,3],[31,4,31,10],[0,14,5,14],[12,6,12,7],[11,8,11,10],[12,8,12,10],[10,1,12,3],[11,4,11,5],[0,8,0,10],[10,4,10,10],[12,4,12,5],[3,1,3,10],[5,1,5,10],[7,1,7,3],[7,4,7,10],[11,6,11,7],[8,1,8,3],[8,4,8,10]]}
[null,null,null,null,null,null,null,null,"Приложение №2",null,null,null,null,null,"Заполняют каждый участник сделки: \n• Руководитель и Учредитель (ли) (Акционер (ы)) Заемщика юридического лица\n• Заемщик - индивидуальный предприниматель\n• Залогодатель (не являющимся Заемщиком) - физическое лицо или Индивидуальный предприниматель (третье лицо, при наличии в Заявлении -Анкете. согласно Приложения №1)\n• Поручитель (не являющимся Заемщиком)  - физическое лицо или Индивидуальный предприниматель (третье лицо, при наличии в Заявлении -Анкете. согласно Приложения №1)"]
[]
[null,null,null,null,"                                                            "]
[null," АНКЕТА \nУЧАСТНИКА СДЕЛКИ - ФИЗИЧЕСКОГО ЛИЦА"]
[]
[null,"Сведения об участнике сделки"]
[]
[null,"Полное наименование организации  - заемщика или Ф.И.О. индивидуального предпринимателя - заемщика"]
[null,"Сокращенное наименование организации  - заемщика или Ф.И.О. индивидуального предпринимателя - заемщика"]
[null,"Фирменное наименование организации  - заемщика или Ф.И.О. индивидуального предпринимателя - заемщика"]
[null,"Характер отношений, связывающих Вас с  заемщиком / поручителем / залогодателем АО «Автоградбанк»\n",null,null,"Залогодатель - физическое лицо / индивидуальный предприниматель\nПоручитель - физическое лицо / индивидуальный предприниматель",null,null,null,null,null,null,null,null,null,"Отметить вариант"]
[null,null,null,null,"Заемщик",null,"Поручитель \n- юридическое лицо",null,"Залогодатель\n- юридическое лицо"]
[null,null,null,null,"руководитель / ИП\nучредитель / акционер",null,"руководитель\nучредитель / акционер",null,"руководитель\nучредитель / акционер",null,null,null,null,null,"Отметить вариант"]
[null,"Ф.И.О. участника сделки"]
[null,"Дата рождения"]
[null,"Место рождения"]
[null,"Гражданство"]
[null,"ИНН (при наличии)"]
[null,"СНИЛС №"]
[null,"Контактные телефоны ",null,"сотовый"]
[null,null,null,"рабочий"]
[null,null,null,"домашний"]
[null,"Документ, удостоверяющий личность",null,"вид документа "]
[null,null,null,"кем выдан"]
[null,null,null,"код подразделения"]
[null,null,null,"когда выдан"]
[null,"Данные миграционной карты \n(для иностранных гражданин или граждан без  гражданства)",null,"наименование документа "]
[null,null,null,"кем выдан"]
[null,null,null,"дата начала срока пребывания "]
[null,null,null,"дата окончания срока пребывания "]
[null,null,null,"код подразделения "]
[null,"Адрес регистрации"]
[null,"Адрес фактического проживания"]
[null,"Семейное положение"]
[null,"Основное место работы ",null,"наименование документа "]
[null,null,null,"кем выдан"]
[null,null,null,"дата начала срока пребывания "]
[null,null,null,"дата окончания срока пребывания "]
[null,null,null,"код подразделения "]
[null,"Находится ли какое-либо ваше имущество в залоге/закладе, под арестом/запрещением?\n",null,null,"НЕТ\nДА",null,null,null,null,null,null,null,null,"Отметить вариант"]
[null,"наименование имущества"]
[]
[null,"Дополнительные сведения",null,null,"Запрашиваемые условия кредита:"]
[]
[null,"Являетесь ли Вы иностранным публичным должностным лицом?\n",null,null,null,null,null,null,null,"НЕТ\nДА",null,null,null,"Отметить вариант"]
[null,"Являетесь ли Вы должностным лицом публичной международной организации ?\n",null,null,null,null,null,null,null,"НЕТ\nДА",null,null,null,"Отметить вариант"]
[null,"Являетесь ли Вы   лицом, замещающим (занимающим) государственную должность Российской Федерации, должность члена Совета директоров Центрального банка Российской Федерации, должность федеральной государственной службы, назначение на которые и освобождение от которых осуществляются Президентом Российской Федерации или Правительством Российской Федерации, должность в Центральном банке Российской Федерации, государственных корпорациях и иных организациях, созданных Российской Федерацией на основании федеральных законов, включенные в перечни должностей, определяемые Президентом Российской Федерации (ПДЛ)?",null,null,null,null,null,null,null,"НЕТ\nДА",null,null,null,"Отметить вариант"]
[null,"Являетесь ли Вы супругом (супругой), близким родственником ПДЛ (в случае положительного ответа – степень родства и ФИО, должность, место работы ПДЛ)\n",null,null,null,null,null,null,null,"НЕТ\nДА",null,null,null,null,"Отметить вариант"]
[]
[null,"Подтверждаю, что предоставленная информация в данной Анкете является подлинной, соответствует действительности и выражаю согласие на проведение дальнейшей проверки ее достоверности. В случае изменения указанных в анкете сведений в течение действия кредитного договора, обязуюсь в трехдневный срок сообщить о произошедших изменениях в АО «Автоградбанк»."]
[null,"     ","ДА",null,"     ","НЕТ",null,null,null,null,null,null,null,null,"Отметить вариант"]
[]
[null,"Подтверждаю согласие на осуществление АО «Автоградбанк  обработки персональных данных, указанных в настоящеей Анкете, а также предоставленных устно представителю АО «Автоградбанк», а именно: сбор, систематизацию, накопление, хранение, уточнение (обновление, изменение), использование,  распространение (в случаях прямо предусмотренных действующим законодательством РФ с соблюдением требований банковской тайны), обезличивание, блокирование, уничтожение  с использованием, как автоматизированной информационной системы, так и бумажных носителей,  персональных данных, в соответствии с требованиями Федерального Закона от 27.07.2006 №152-ФЗ «О персональных данных». Обработка данных проводится с целью осуществления банковского обслуживания Клиента, предоставления отчетности государственным надзорным органам, предоставления Клиенту сведений уведомительного или маркетингового характера, включая информацию о новых банковских продуктах, услугах, проводимых акциях, мероприятиях, в том числе с использованием средств связи. Отзыв согласия на обработку персональных данных производится путем подачи в АО «Автоградбанк» соответствующего письменного заявления, направленного на почтовый адрес Банка либо врученного лично под расписку сотруднику Банка. Согласие выдано на неопределенный срок. Данное согласие действует с момента подписания  до даты его отзыва, до достижения целей обработки и истечения сроков хранения, определяемых в соответствии с действующим законодательством Российской Федерации и нормативными документами Банка России.\n"]
[null,"     ","ДА",null,"     ","НЕТ",null,null,null,null,null,null,null,null,"Отметить вариант"]
[]
[null,"Заявитель выражает свое согласие на предоставление АО «Автоградбанк»  в целях формирования кредитной истории Заявителя всех необходимых сведений о Заявителе, о его обязательствах и иной содержащейся в настоящей Заявке  и в сопутствующих документах информации, предусмотренной Федеральным Законом «О кредитных историях»,  в ОАО «Национальное бюро кредитных историй» (ОАО «НБКИ») "]
[null,"     ","ДА",null,"     ","НЕТ",null,null,null,null,null,null,null,null,"Отметить вариант"]
[null,"Заявитель выражает согласие на получение АО «Автоградбанк» кредитных отчетов (информации, входящей в состав кредитной истории) из  ОАО «НБКИ» в соответствии с Федеральным Законом от 30.12.2004г. №218 –ФЗ «О кредитных историях» в целях получения банковских услуг."]
[null,"     ","ДА",null,"     ","НЕТ",null,null,null,null,null,null,null,null,"Отметить вариант"]
[]
[null,"Подпись ",null,null,"_____________________________________________________________________________"]
[null,null,null,null," Ф.И.О. полностью "]
[]
[null,"Дата ______________________"]

{"sheet":"№3","index":5,"n_rows":47,"n_cols":15,"rows_kept":47,"cut":false,"hidden":false,"merged":[[39,1,39,9],[20,6,20,8],[20,3,20,4],[20,1,20,2],[8,1,8,3],[8,4,8,9],[9,1,9,3],[9,4,9,9],[21,1,23,2],[21,4,21,9],[22,4,22,9],[23,4,23,9],[0,13,3,21],[0,7,0,9],[3,1,3,9],[5,1,5,9],[7,1,7,3],[7,4,7,9],[19,6,19,8],[13,6,13,9],[12,1,12,2],[16,13,16,20],[10,1,10,3],[10,4,10,9],[28,1,28,9],[31,1,31,9],[42,4,42,9],[15,1,15,3],[15,4,15,9],[24,1,26,2],[24,4,24,9],[25,4,25,9],[26,4,26,9],[19,3,19,4],[34,1,34,9],[35,1,35,9],[37,1,37,9],[16,1,19,2],[16,3,16,4],[17,3,17,4],[18,3,18,4],[16,6,16,8],[17,6,17,8],[18,6,18,8],[11,1,11,3],[11,4,11,9],[14,1,14,3],[14,4,14,9],[12,4,12,5],[12,7,12,9]]}
[null,null,null,null,null,null,null,"Приложение №3",null,null,null,null,null,"Заполняет:\n• Залогодатель (не являющимся Заемщиком)  - юридическое лицо (организация) (третье лицо, при наличии в Заявлении -Анкете. согласно Приложения №1)\n• Поручитель (не являющимся Заемщиком) - юридическое лицо (организация) (третье лицо, при наличии в Заявлении -Анкете. согласно Приложения №1)"]
[]
[null,null,null,null,"                                                            "]
[null," АНКЕТА \nПОРУЧИТЕЛЯ / ЗАЛОГОДАТЕЛЯ\n (юридического лица)"]
[]
[null,"Сведения об участнике сделки"]
[]
[null,"Полное наименование организации  - заемщика или Ф.И.О. индивидуального предпринимателя - заемщика"]
[null,"Сокращенное наименование организации  - заемщика или Ф.И.О. индивидуального предпринимателя - заемщика"]
[null,"Фирменное наименование организации  - заемщика или Ф.И.О. индивидуального предпринимателя - заемщика"]
[null,"Характер отношений, связывающих Вас с  заемщиком АО «Автоградбанк»\n",null,null,"залогодатель\nпоручитель",null,null,null,null,null,null,null,null,"Отметить вариант"]
[null,"Наименование организации  - участника сделки "]
[null,"Свидетельство о регистрации",null,"Номер",null,null,"Дата "]
[null,"ИНН",null,"КПП",null,"ОГРН/ОГРНИП"]
[null,"Юридический адрес \n(адрес местонахождения согласно учредительным документам)"]
[null,"Фактический адрес \n(адрес местонахождения единоличного исполнительного органа, печати организации)"]
[null,"Данные по владельцам бизнеса",null,"Наименование организации / ФИО ",null,"Учредитель / Конечный бенефициар *","ИНН (для учредителя ЮЛ) / Паспортные данные (для учредителя ФЛ)",null,null,"Доля",null,null,null,"* Конечный бенефициар - это лицо или несколько лиц, которые косвенно владеют юридическим лицом или оказывают существенное влияние на принятие им решений, при этом не является учредителем / акционером организации"]
[null,null,null,null,null,null,null,null,null,null,null,null,null,"При необходимости добавить дополнительную строчку"]
[]
[]
[null,"Сведения о правопреемстве (полное, сокращенное наименование, ОГРН)"]
[null,"Контактные данные Руководителя организации / ИП",null,"ФИО "]
[null,null,null,"Номер телефона"]
[null,null,null,"Электронная почта"]
[null,"Контактное лицо",null,"ФИО - Должность"]
[null,null,null,"Номер телефона"]
[null,null,null,"Электронная почта"]
[]
[null,"Подтверждаем, что предоставленная информация  в данной Анкете является подлинной, соответствует действительности и выражаю согласие на проведение дальнейшей проверки ее достоверност и на проведение дальнейшего анализа предприятия. Не возражаем против посещения сотрудником Банка места ведения бизнеса предприятия и готовы предоставить ему всю необходимую информацию. В случае изменения указанных в данной Анкете сведений в течение действия договора поручительства / залога, обязуемся в трехдневный срок сообщить о произошедших изменениях в АО «Автоградбанк»."]
[null,"     ","ДА",null,"     ","НЕТ",null,null,null,null,null,null,null,"Отметить вариант"]
[]
[null,"Подтверждаем согласие на осуществление АО «Автоградбанк  обработки персональных данных, указанных в настоящей Анкете, а также предоставленных устно представителю АО «Автоградбанк», а именно: сбор, систематизацию, накопление, хранение, уточнение (обновление, изменение), использование,  распространение (в случаях прямо предусмотренных действующим законодательством РФ с соблюдением требований банковской тайны), обезличивание, блокирование, уничтожение  с использованием, как автоматизированной информационной системы, так и бумажных носителей,  персональных данных, в соответствии с требованиями Федерального Закона от 27.07.2006 №152-ФЗ «О персональных данных».Обработка данных проводится с целью осуществления банковского обслуживания Клиента, предоставления отчетности государственным надзорным органам, предоставления Клиенту сведений уведомительного или маркетингового характера, включая информацию о новых банковских продуктах, услугах, проводимых акциях, мероприятиях, в том числе с использованием средств связи. Отзыв согласия на обработку персональных данных производится путем подачи в АО «Автоградбанк» соответствующего письменного заявления, направленного на почтовый адрес Банка либо врученного лично под расписку сотруднику Банка. Согласие выдано на неопределенный срок. Данное согласие действует с момента подписания  до даты его отзыва, до достижения целей обработки и истечения сроков хранения, определяемых в соответствии с действующим законодательством Российской Федерации и нормативными документами Банка России."]
[null,"     ","ДА",null,"     ","НЕТ",null,null,null,null,null,null,null,"Отметить вариант"]
[]
[null,"Банк оставляет за собой право обращаться к любому лицу предприятия - Поручителя / Залогодателя, которое может оказать содействие в принятии решения относительно предоставления или непредставления кредита Заявителю, указанному в настоящей Анкете. \nЕсли Поручитель / Залогодатель по тем или иным причинам не желает, чтобы кто-нибудь был осведомлен о настоящей Анкете, то следует указать имя (наименование) указанного лица и причину нежелания: "]
[null,"     ",null,null,null,null,null,null,null,null,null,null,null,"При необходимости добавить дополнительную строчку"]
[]
[null,"Заявитель выражает свое согласие на предоставление АО «Автоградбанк»  в целях формирования кредитной истории Заявителя всех необходимых сведений о Заявителе, о его обязательствах и иной содержащейся в настоящей Заявке  и в сопутствующих документах информации, предусмотренной Федеральным Законом «О кредитных историях»,  в ОАО «Национальное бюро кредитных историй» (ОАО «НБКИ») "]
[null,"     ","ДА",null,"     ","НЕТ",null,null,null,null,null,null,null,"Отметить вариант"]
[null,"Заявитель выражает согласие на получение АО «Автоградбанк» кредитных отчетов (информации, входящей в состав кредитной истории) из  ОАО «НБКИ» в соответствии с Федеральным Законом от 30.12.2004г. №218 –ФЗ «О кредитных историях» в целях получения банковских услуг."]
[null,"     ","ДА",null,"     ","НЕТ",null,null,null,null,null,null,null,null,"Отметить вариант"]
[null,"Подпись руководителя  __________________________ ",null,null,"_____________________________________________________________________________"]
[null,null,null,null," Ф.И.О. полностью "]
[]
[null,"Дата ______________________"]
[]
[null,"М.П.   "]

{"sheet":"№4","index":6,"n_rows":24,"n_cols":24,"rows_kept":24,"cut":false,"hidden":true,"merged":[[0,15,0,18],[5,1,5,18],[14,1,14,18],[4,15,4,18],[2,1,2,18],[9,5,9,18],[10,2,10,4],[10,5,10,18],[11,2,11,4],[11,5,11,18],[3,2,3,18],[5,21,12,21],[15,1,15,18],[12,1,12,18],[6,2,6,4],[6,5,6,18],[7,2,7,4],[7,5,7,18],[8,2,8,4],[8,5,8,18],[9,2,9,4],[21,1,21,18],[22,2,22,18],[23,1,23,18],[17,1,17,18],[18,2,18,18],[19,1,19,18]]}
[null,null,null,null,null,null,null,null,null,null,null,null,null,null,null,"Приложение №4"]
[]
[null," ФИНАНСОВЫЕ ДОКУМЕНТЫ ","Список до",null,null,null,null,null,null,null,null,null,null,null,null,null,null,null,null,null,null,null,{"$f":"CONCATENATE(INT((MONTH(X3)+2)/3),\" кв. \",YEAR(X3))","v":"2 кв. 2022"},{"$f":"IF(AND(TODAY()>DATE(YEAR(TODAY())-1,10,31),TODAY()<=DATE(YEAR(TODAY()),3,31)),(DATE(YEAR(TODAY())-1,10,1)-1),\nIF(AND(TODAY()>DATE(YEAR(TODAY()),4,30),TODAY()<=DATE(YEAR(TODAY()),7,31)),(DATE(YEAR(TODAY()),4,1)-1),\nIF(AND(TODAY()>DATE(YEAR(TODAY()),7,31),TODAY()<=DATE(YEAR(TODAY()),10,31)),(DATE(YEAR(TODAY()),7,1)-1),\nIF(AND(TODAY()>DATE(YEAR(TODAY())-1,10,31),TODAY()<=DATE(YEAR(TODAY()),4,30)),(DATE(YEAR(TODAY()),1,1)-1),))))","v":44742}]
[null,null,"• для Заемщиков  - юридических лиц (ООО, АО и пр.) применяющих ОСНО / УСН / ЕСХН\n• для Заемщиков - юридических лиц (лизинговых компаний)\n• для Заемщиков  - индивидуальных предпринимателей применяющих ОСНО"]
[null,null,null,null,null,null,null,null,null,null,null,null,null,null,null,null,null,null,null,null,null,null,{"$f":"CONCATENATE(INT((MONTH(X5)+2)/3),\" кв. \",YEAR(X5))","v":"1 кв. 2022"},{"$f":"EOMONTH(X3,-3)","v":44651}]
[null,"1. Бухгалтерские балансы и Отчеты о финансовых результатах (Ф1, Ф2) за последние 6 отчетных кварталов: \n\n",null,null,null,null,null,null,null,null,null,null,null,null,null,null,null,null,null,null,null,"Согласно Федерального закона от 6 декабря 2011 г. N 402-ФЗ \"О бухгалтерском учете\" все юридические лица за исключением Индивидуальных предпринимателей обязаны вести бухгалтерский учет, в том числе применяющие УСН / ЕСХН","4 кв. 2021",{"$f":"EOMONTH(X5,-3)","v":44561}]
[null,null,{"$f":"CONCATENATE(\"- \",W9,\" г.\")","v":"- 1 кв. 2021 г."},null,null,null,null,null,null,null,null,null,null,null,null,null,null,null,null,null,null,null,"3 кв. 2021",{"$f":"EOMONTH(X6,-3)","v":44469}]
[null,null,{"$f":"CONCATENATE(\"- \",W8,\" г.\")","v":"- 2 кв. 2021 г."},null,null,null,null,null,null,null,null,null,null,null,null,null,null,null,null,null,null,null,"2 кв. 2021",{"$f":"EOMONTH(X7,-3)","v":44377}]
[null,null,{"$f":"CONCATENATE(\"- \",W7,\" г.\")","v":"- 3 кв. 2021 г."},null,null,null,null,null,null,null,null,null,null,null,null,null,null,null,null,null,null,null,"1 кв. 2021",{"$f":"EOMONTH(X8,-3)","v":44286}]
[null,null,{"$f":"CONCATENATE(\"- \",W6,\" г.\")","v":"- 4 кв. 2021 г."}]
[null,null,{"$f":"CONCATENATE(\"- \",W5,\" г.\")","v":"- 1 кв. 2022 г."}]
[null,null,{"$f":"CONCATENATE(\"- \",W3,\" г.\")","v":"- 2 кв. 2022 г."}]
[null,"• установленная законодательством форма с печатью и подписью в сканированном виде\nЕсли срок регистрации компании не превышает 12 месяцев, то необходимо предоставить документы за все имеющиеся отчетные периоды.\n"]
[]
[null,{"$f":"CONCATENATE(\"2. Оборотно - сальдовые ведомости за квартал на последнюю отчетную дату (за \",W3,\" г.) в разрезе контрагентов по счетам: \",CHAR(10),\"• 60, 62 -дебиторская и кредиторская задолженность\",CHAR(10),\"• 66, 67 - кредиты и займы, финансовые вложения\")","v":"2. Оборотно - сальдовые ведомости за квартал на последнюю отчетную дату (за 2 кв. 2022 г.) в разрезе контрагентов по счетам: \n• 60, 62 -дебиторская и кредиторская задолженность\n• 66, 67 - кредиты и займы, финансовые вложения"}]
[null,"• установленная законодательством форма в формате EXCEL"]
[]
[null,{"$f":"CONCATENATE(\"3. Расшифровки дебиторской задолженности, кредиторской задолженности, финансовых вложений  с указанием крупных контрагентов,\",\" с долей более 5% от задолженности, сроков возникновения и погашения, в т.ч. просроченной задолженности - на последнюю отчетную дату (\",№4!W3,\" г.)\")","v":"3. Расшифровки дебиторской задолженности, кредиторской задолженности, финансовых вложений  с указанием крупных контрагентов, с долей более 5% от задолженности, сроков возникновения и погашения, в т.ч. просроченной задолженности - на последнюю отчетную дату (2 кв. 2022 г.)"}]
[null,null,"a вкладка \"Расшифровки\" (форма для заполнения)"]
[null,"• по форме Банка с печатью и подписью в сканированном виде\n•  в электронном виде (заполненная вкладка данного файла)"]
[]
[null,{"$f":"CONCATENATE(\"4. Справка о действующих обязательствах на последнюю отчетную дату (\",№4!W3,\" г.)\")","v":"4. Справка о действующих обязательствах на последнюю отчетную дату (2 кв. 2022 г.)"}]
[null,null,"a вкладка \"Обязательства\" (форма для заполнения)"]
[null,"• по форме Банка с печатью и подписью в сканированном виде\n•  в электронном виде (заполненная вкладка данного файла)"]

{"sheet":"№5","index":7,"n_rows":22,"n_cols":14,"rows_kept":22,"cut":false,"hidden":true,"merged":[[0,13,0,15],[1,13,1,16],[15,1,15,16],[5,1,5,16],[6,2,6,12],[12,1,12,16],[7,2,7,4],[8,2,8,4],[9,2,9,4],[10,2,10,4],[11,2,11,4],[3,2,3,16],[2,1,2,16],[13,1,13,16],[19,1,19,16],[20,2,20,12],[21,1,21,16],[16,2,16,12],[17,1,17,16]]}
[null,null,null,null,null,null,null,null,null,null,null,null,null,"Приложение №5"]
[]
[null," ФИНАНСОВЫЕ ДОКУМЕНТЫ "]
[null,null,"• для Заемщиков - Индивидуальных предпринимателей\nза исключением ИП применяющих ОСНО "]
[]
[null,"1.  Упрощенная форма Баланса по установленной форме Банком за последние 5 отчетных кварталов: "]
[null,null,"a вкладка \"Баланс и ОФР\" (форма для заполнения)"]
[null,null,{"$f":"CONCATENATE(\"- \",№4!W8,\" г.\")","v":"- 2 кв. 2021 г."}]
[null,null,{"$f":"CONCATENATE(\"- \",№4!W7,\" г.\")","v":"- 3 кв. 2021 г."}]
[null,null,{"$f":"CONCATENATE(\"- \",№4!W6,\" г.\")","v":"- 4 кв. 2021 г."}]
[null,null,{"$f":"CONCATENATE(\"- \",№4!W5,\" г.\")","v":"- 1 кв. 2022 г."}]
[null,null,{"$f":"CONCATENATE(\"- \",№4!W3,\" г.\")","v":"- 2 кв. 2022 г."}]
[null,"• по форме Банка с печатью и подписью в сканированном виде\n• в электронном виде (заполненная вкладка данного файла)"]
[null,"Если срок регистрации ИП не превышает 12 месяцев, то необходимо внести данные в форму за все имеющиеся отчетные периоды."]
[]
[null,{"$f":"CONCATENATE(\"2. Расшифровки дебиторской задолженности, кредиторской задолженности, финансовых вложений  с указанием крупных контрагентов,\",\" с долей более 5% от задолженности, сроков возникновения и погашения, в т.ч. просроченной задолженности - на последнюю отчетную дату (\",№4!W3,\" г.)\")","v":"2. Расшифровки дебиторской задолженности, кредиторской задолженности, финансовых вложений  с указанием крупных контрагентов, с долей более 5% от задолженности, сроков возникновения и погашения, в т.ч. просроченной задолженности - на последнюю отчетную дату (2 кв. 2022 г.)"}]
[null,null,"a вкладка \"Расшифровки\" (форма для заполнения)"]
[null,"• по форме Банка с печатью и подписью в сканированном виде\n•  в электронном виде (заполненная вкладка данного файла)"]
[]
[null,{"$f":"CONCATENATE(\"3. Справка о действующих обязательствах на последнюю отчетную дату (\",№4!W3,\" г.)\")","v":"3. Справка о действующих обязательствах на последнюю отчетную дату (2 кв. 2022 г.)"}]
[null,null,"a вкладка \"Обязательства\" (форма для заполнения)"]
[null,"• по форме Банка с печатью и подписью в сканированном виде\n•  в электронном виде (заполненная вкладка данного файла)"]

{"sheet":"Расшифровки","index":8,"n_rows":39,"n_cols":11,"rows_kept":39,"cut":false,"hidden":true,"merged":[[32,1,32,2],[14,1,14,2],[25,1,25,7],[23,1,23,2],[0,3,0,7],[4,0,4,8],[5,0,5,8],[7,1,7,7],[16,1,16,7]]}
[null,"Наименование организации",null,{"$f":"IF(№1!$E$8=\"\",\"\",№1!$E$8)","v":""}]
[]
[null,"ИНН",{"$f":"IF(№1!$C$13=\"\",\"\",№1!$C$13)","v":""},null,null,null,null,"рублей",null,null,"<-- Выбрать единицу измерения в раскрывающемся списке"]
[]
["Расшифровки фининансовых показателей "]
[{"$f":"CONCATENATE(\"на \",TEXT(№4!X3,\"ДД.ММ.ГГГГ\"),\" г. \")","v":"на 30.06.2022 г. "}]
[]
[null,"ДЕБИТОРСКАЯ ЗАДОЛЖЕННОСТЬ (задолженность клиентов/предоплата поставщикам)"]
[null,"п\\п","Наименование кредитора","Дата возникновения","Дата погашения","Сумма ","Сумма просроченной задолженности","Комментарии"]
[]
[]
[]
[null,null,null,null,null,null,null,null,null,null,"При необходимости добавить дополнительную строчку"]
[]
[null,"Итого",null,null,null,{"$f":"SUM(F9:F14)","v":0},{"$f":"SUM(G9:G14)","v":0}]
[]
[null,"КРЕДИТОРСКАЯ ЗАДОЛЖЕННОСТЬ (полученная предоплата / продукция полученная на реализацию)"]
[null,"п\\п","Наименование поставщика","Дата возникновения","Дата погашения","Сумма ","Сумма просроченной задолженности","Комментарии"]
[]
[]
[]
[null,null,null,null,null,null,null,null,null,null,"При необходимости добавить дополнительную строчку"]
[]
[null,"Итого",null,null,null,{"$f":"SUM(F17:F23)","v":0},{"$f":"SUM(G17:G23)","v":0}]
[]
[null,"ФИНАНСОВЫЕ ВЛОЖЕНИЯ"]
[null,"п\\п","Наименование","Дата возникновения","Дата погашения","Сумма ","Сумма просроченной задолженности","Комментарии"]
[]
[]
[]
[null,null,null,null,null,null,null,null,null,null,"При необходимости добавить дополнительную строчку"]
[]
[null,"Итого",null,null,null,{"$f":"SUM(F26:F32)","v":0},{"$f":"SUM(G26:G32)","v":0}]
[]
[null,"Все сведения, указанные в настоящем отчете  достоверны    "]
[]
[null,"Подпись руководителя ",null,null,"(",null,null,")"]
[]
[null,null,null,"м.п."]

{"sheet":"Обязательства","index":9,"n_rows":46,"n_cols":14,"rows_kept":46,"cut":false,"hidden":false,"merged":[[41,1,41,2],[14,1,14,2],[0,3,0,10],[4,0,4,11],[5,0,5,11],[7,1,7,10],[16,1,16,10],[23,1,23,2],[25,1,25,10],[32,1,32,2],[34,1,34,10]]}
[null,"Наименование организации",null,{"$f":"IF(№1!$E$8=\"\",\"\",№1!$E$8)","v":""}]
[]
[null,"ИНН",{"$f":"IF(№1!$C$13=\"\",\"\",№1!$C$13)","v":""},null,null,null,null,null,null,null,"тысячи",null,null,"<-- Выбрать единицу измерения в раскрывающемся списке"]
[]
["Справка о действующих обязательствах"]
[{"$f":"CONCATENATE(\"на \",TEXT(№4!X3,\"ДД.ММ.ГГГГ\"),\" г. \")","v":"на 30.06.2022 г. "}]
[]
[null,"ЗАЙМЫ"]
[null,"п\\п","Наименование займодателя","Дата\nвыдачи","Дата погашения",{"$f":"IF($K$3=\"тысячи\",\"Сумма по договору (тыс.)\",IF(K3=\"миллионы\",\"Сумма по договору (млн.)\",\"Сумма по договору (млн.)\"))","v":"Сумма по договору (тыс.)"},"Валюта",{"$f":"IF($K$3=\"тысячи\",\"Остаток задолженности (тыс.)\",IF(M3=\"миллионы\",\"Остаток задолженности (млн.)\",\"Остаток задолженности (млн.)\"))","v":"Остаток задолженности (тыс.)"},"Ставка\n(% год.)","Комиссия","Вид обеспечения"]
[]
[]
[]
[null,null,null,null,null,null,null,null,null,null,null,null,null,"При необходимости добавить дополнительную строчку"]
[]
[null,"Итого",null,null,null,{"$f":"SUM(F10:F14)","v":0},null,{"$f":"SUM(H10:H14)","v":0}]
[]
[null,"КРЕДИТЫ"]
[null,"п\\п","Наименование кредитора","Дата\nвыдачи","Дата погашения",{"$f":"IF($K$3=\"тысячи\",\"Сумма по договору (тыс.)\",IF(K12=\"миллионы\",\"Сумма по договору (млн.)\",\"Сумма по договору (млн.)\"))","v":"Сумма по договору (тыс.)"},"Валюта",{"$f":"IF($K$3=\"тысячи\",\"Остаток задолженности (тыс.)\",IF(M12=\"миллионы\",\"Остаток задолженности (млн.)\",\"Остаток задолженности (млн.)\"))","v":"Остаток задолженности (тыс.)"},"Ставка\n(% год.)","Комиссия","Вид обеспечения"]
[]
[]
[]
[null,null,null,null,null,null,null,null,null,null,null,null,null,"При необходимости добавить дополнительную строчку"]
[]
[null,"Итого",null,null,null,{"$f":"SUM(F19:F23)","v":0},null,{"$f":"SUM(H19:H23)","v":0}]
[]
[null,"ЛИЗИНГ"]
[null,"п\\п","Наименование лизинговой компании","Дата\nвыдачи","Дата погашения",{"$f":"IF($K$3=\"тысячи\",\"Сумма по договору (тыс.)\",IF(K21=\"миллионы\",\"Сумма по договору (млн.)\",\"Сумма по договору (млн.)\"))","v":"Сумма по договору (тыс.)"},"Валюта",{"$f":"IF($K$3=\"тысячи\",\"Остаток задолженности (тыс.)\",IF(M21=\"миллионы\",\"Остаток задолженности (млн.)\",\"Остаток задолженности (млн.)\"))","v":"Остаток задолженности (тыс.)"},"Ставка\n(% год.)","Комиссия","Вид обеспечения"]
[]
[]
[]
[null,null,null,null,null,null,null,null,null,null,null,null,null,"При необходимости добавить дополнительную строчку"]
[]
[null,"Итого",null,null,null,{"$f":"SUM(F28:F32)","v":0},null,{"$f":"SUM(H28:H32)","v":0}]
[]
[null,"ПРОЧИЕ ОБЯЗАТЕЛЬСТВА"]
[null,"п\\п","Наименование кредитора","Дата\nвыдачи","Дата погашения",{"$f":"IF($K$3=\"тысячи\",\"Сумма по договору (тыс.)\",IF(K30=\"миллионы\",\"Сумма по договору (млн.)\",\"Сумма по договору (млн.)\"))","v":"Сумма по договору (тыс.)"},"Валюта",{"$f":"IF($K$3=\"тысячи\",\"Остаток задолженности (тыс.)\",IF(M30=\"миллионы\",\"Остаток задолженности (млн.)\",\"Остаток задолженности (млн.)\"))","v":"Остаток задолженности (тыс.)"},"Ставка\n(% год.)","Комиссия","Вид обеспечения"]
[]
[]
[]
[null,null,null,null,null,null,null,null,null,null,null,null,null,"При необходимости добавить дополнительную строчку"]
[]
[null,"Итого",null,null,null,{"$f":"SUM(F37:F41)","v":0},null,{"$f":"SUM(H37:H41)","v":0}]
[]
[null,"Все сведения, указанные в настоящем отчете  достоверны    "]
[]
[null,"Подпись руководителя ",null,null,"("]

{"sheet":"Целевое НОВОЕ","index":10,"n_rows":24,"n_cols":14,"rows_kept":24,"cut":false,"hidden":false,"merged":[[18,5,18,10],[0,3,0,10],[4,0,4,11],[5,0,5,11],[7,1,7,10],[8,5,8,10],[14,5,14,10],[15,5,15,10],[16,5,16,10],[17,5,17,10]]}
[null,"Наименование организации",null,{"$f":"IF(№1!$E$8=\"\",\"\",№1!$E$8)","v":""}]
[]
[null,"ИНН",{"$f":"IF(№1!$C$13=\"\",\"\",№1!$C$13)","v":""}]
[]
["Целевое использование кредитных денежных средств"]
[{"$f":"CONCATENATE(\"на \",TEXT(№4!X3,\"ДД.ММ.ГГГГ\"),\" г. \")","v":"на 30.06.2022 г. "}]
[]
[null,"Запрошенные кредитные средства планируется направить следующим контрагентам:"]
[null,"п\\п","Наименование контрагента (не менее 5 контрагентов)","ИНН контрагента\n","Номер и дата договора","Указать порядок расчета по договору (предоплата/постоплата)"]
[]
[]
[]
[]
[]
[]
[]
[]
[null,null,null,null,null,null,null,null,null,null,null,null,null,"При необходимости добавить дополнительную строчку"]
[]
[]
[]
[null,"Все сведения, указанные в настоящем отчете  достоверны    "]
[]
[null,"Подпись руководителя ",null,null,"("]

{"sheet":"Баланс и ОФР","index":11,"n_rows":95,"n_cols":10,"rows_kept":95,"cut":false,"hidden":true,"merged":[[90,0,90,1],[7,0,7,1],[89,0,89,1],[67,0,67,1],[80,0,80,1],[86,0,86,1],[82,0,82,1],[83,0,83,1],[84,0,84,1],[85,0,85,1],[88,0,88,1],[59,0,59,1],[63,0,63,1],[69,0,69,1],[39,0,39,1],[13,0,13,1],[14,0,14,1],[55,0,55,1],[54,0,54,1],[45,0,45,1],[53,0,53,1],[31,0,31,1],[32,0,32,1],[42,0,42,1],[35,0,35,1],[92,0,92,2],[93,4,93,5],[92,4,92,5],[0,2,0,6],[22,0,22,1],[27,0,27,1],[57,6,57,7],[2,2,2,3],[16,0,16,1],[34,0,34,1],[41,0,41,1],[38,0,38,1],[4,6,4,7],[8,0,8,1],[5,0,5,2],[17,0,17,1]]}
[null,"ФИО Индивидуального предпринимателя",{"$f":"IF(№1!$E$8=\"\",\"\",№1!$E$8)","v":""}]
[]
[null,"ИНН",{"$f":"IF(№1!$C$13=\"\",\"\",№1!$C$13)","v":""}]
[]
["УПРОЩЕННЫЙ БАЛАНС (для Индивидуальных предпринимателей)",null,null,null,null,null,"рублей",null,null,"<-- Выбрать единицу измерения в раскрывающемся списке"]
["Наименование и статья",null,null,{"$f":"EOMONTH(E6,-3)","v":"2021-06-30"},{"$f":"EOMONTH(F6,-3)","v":"2021-09-30"},{"$f":"EOMONTH(G6,-3)","v":"2021-12-31"},{"$f":"EOMONTH(H6,-3)","v":"2022-03-31"},{"$f":"IF(AND(TODAY()>DATE(YEAR(TODAY())-1,10,31),TODAY()<=DATE(YEAR(TODAY()),3,31)),(DATE(YEAR(TODAY())-1,10,1)-1),\nIF(AND(TODAY()>DATE(YEAR(TODAY()),4,30),TODAY()<=DATE(YEAR(TODAY()),7,31)),(DATE(YEAR(TODAY()),4,1)-1),\nIF(AND(TODAY()>DATE(YEAR(TODAY()),7,31),TODAY()<=DATE(YEAR(TODAY()),10,31)),(DATE(YEAR(TODAY()),7,1)-1),\nIF(AND(TODAY()>DATE(YEAR(TODAY())-1,10,31),TODAY()<=DATE(YEAR(TODAY()),4,30)),(DATE(YEAR(TODAY()),1,1)-1),))))","v":"2022-06-30"}]
[null,null,null,{"$f":"CONCATENATE(INT((MONTH(D6)+2)/3),\" кв. \",YEAR(D6))","v":"2 кв. 2021"},{"$f":"CONCATENATE(INT((MONTH(E6)+2)/3),\" кв. \",YEAR(E6))","v":"3 кв. 2021"},{"$f":"CONCATENATE(INT((MONTH(F6)+2)/3),\" кв. \",YEAR(F6))","v":"4 кв. 2021"},{"$f":"CONCATENATE(INT((MONTH(G6)+2)/3),\" кв. \",YEAR(G6))","v":"1 кв. 2022"},{"$f":"CONCATENATE(INT((MONTH(H6)+2)/3),\" кв. \",YEAR(H6))","v":"2 кв. 2022"}]
["ВНЕОБОРОТНЫЕ АКТИВЫ","ВНЕОБОРОТНЫЕ АКТИВЫ"]
["Основные средства",null,"1150",{"$f":"SUM(D10:D13)","v":0},{"$f":"SUM(E10:E13)","v":0},{"$f":"SUM(F10:F13)","v":0},{"$f":"SUM(G10:G13)","v":0},{"$f":"SUM(H10:H13)","v":0}]
[null,"Недвижимость"]
[null,"Оборудование"]
[null,"Автотранспорт"]
[null,"Прочее "]
["Финансовые вложения (Инвестиции)",null,"1170"]
["Итого по разделу I",null,null,{"$f":"D9+D14","v":0},{"$f":"E9+E14","v":0},{"$f":"F9+F14","v":0},{"$f":"G9+G14","v":0},{"$f":"H9+H14","v":0}]
[]
["ОБОРОТНЫЕ АКТИВЫ"]
["Запасы","Запасы","1210",{"$f":"SUM(D19:D22)","v":0},{"$f":"SUM(E19:E22)","v":0},{"$f":"SUM(F19:F22)","v":0},{"$f":"SUM(G19:G22)","v":0},{"$f":"SUM(H19:H22)","v":0}]
[null,"Серье, материалы, полуфабрикаты"]
[null,"Готовая продукция, товар"]
[null,"Продукция, товар отданные на реализацию"]
[null,"Несезонная / Неликвидная продукция"]
["Дебиторская задолженность",null,1230,{"$f":"SUM(D24:D27)","v":0},{"$f":"SUM(E24:E27)","v":0},{"$f":"SUM(F24:F27)","v":0},{"$f":"SUM(G24:G27)","v":0},{"$f":"SUM(H24:H27)","v":0}]
[null,"Счета к получению"]
[null,"Предоплата поставщикам"]
[null,"Предоплата в бюджет"]
[null,"Прочее"]
["Денежные средства",null,"1250",{"$f":"SUM(D29:D31)","v":0},{"$f":"SUM(E29:E31)","v":0},{"$f":"SUM(F29:F31)","v":0},{"$f":"SUM(G29:G31)","v":0},{"$f":"SUM(H29:H31)","v":0}]
[null,"Касса"]
[null,"Банковский счет"]
[null,"Сбережения"]
["Итого по разделу II","Итого по разделу II",null,{"$f":"SUM(D18:D31)","v":0},{"$f":"SUM(E18:E31)","v":0},{"$f":"SUM(F18:F31)","v":0},{"$f":"SUM(G18:G31)","v":0},{"$f":"SUM(H18:H31)","v":0}]
["АКТИВ БАЛАНСА",null,null,{"$f":"D32+D15","v":0},{"$f":"E32+E15","v":0},{"$f":"F32+F15","v":0},{"$f":"G32+G15","v":0},{"$f":"H32+H15","v":0}]
[]
["ДОЛГОСРОЧНЫЕ ОБЯЗАТЕЛЬСТВА","ДОЛГОСРОЧНЫЕ ОБЯЗАТЕЛЬСТВА"]
["Заемные средства \n(срок погашения свыше 1 года с отчетной даты)","Заемные средства","1410",{"$f":"SUM(D37:D38)","v":0},{"$f":"SUM(E37:E38)","v":0},{"$f":"SUM(F37:F38)","v":0},{"$f":"SUM(G37:G38)","v":0},{"$f":"SUM(H37:H38)","v":0}]
[null,"Кредиты"]
[null,"Займы"]
["Прочие обязательства","Прочие обязательства","1450"]
["Итого по разделу IV","Итого по разделу IV",null,{"$f":"SUM(D36:D38)","v":0},{"$f":"SUM(E36:E38)","v":0},{"$f":"SUM(F36:F38)","v":0},{"$f":"SUM(G36:G38)","v":0},{"$f":"SUM(H36:H38)","v":0}]
[]
["КРАТКОСРОЧНЫЕ ОБЯЗАТЕЛЬСТВА","КРАТКОСРОЧНЫЕ ОБЯЗАТЕЛЬСТВА"]
["Заемные средства \n(срок погашения менее или равный 1 году с отчетной даты)","Заемные средства","1510",{"$f":"SUM(D44:D45)","v":0},{"$f":"SUM(E44:E45)","v":0},{"$f":"SUM(F44:F45)","v":0},{"$f":"SUM(G44:G45)","v":0},{"$f":"SUM(H44:H45)","v":0}]
[null,"Кредиты"]
[null,"Займы"]
["Кредиторская задолженность","Кредиторская задолженность",null,{"$f":"SUM(D47:D53)","v":0},{"$f":"SUM(E47:E53)","v":0},{"$f":"SUM(F47:F53)","v":0},{"$f":"SUM(G47:G53)","v":0},{"$f":"SUM(H47:H53)","v":0}]
[null,"Счета к оплате от поставщиков"]
[null,"Товарный кредит от поставщиков"]
[null,"Предоплата покупателей (Авансы выданные)"]
[null,"Задолженность перед персоналом организации "]
[null,"Задолженность перед бюджетом и внебюджетными фондами"]
[null,"Задолженность по аренде, коммунальным платежам"]
[null,"Прочее"]
["Прочие обязательства","Прочие обязательства",1550]
["Итого по разделу V","Итого по разделу V",null,{"$f":"D54+D46+D43","v":0},{"$f":"E54+E46+E43","v":0},{"$f":"F54+F46+F43","v":0},{"$f":"G54+G46+G43","v":0},{"$f":"H54+H46+H43","v":0}]
["ПАССИВ БАЛАНСА","ПАССИВ БАЛАНСА",null,{"$f":"D55+D40","v":0},{"$f":"E55+E40","v":0},{"$f":"F55+F40","v":0},{"$f":"G55+G40","v":0},{"$f":"H55+H40","v":0}]
[]
["УПРОЩЕННЫЙ ОТЧЕТ О ФИНАНСОВЫХ РЕЗУЛЬТАТАХ",null,null,null,null,null,{"$f":"G5","v":"рублей"}]
[null,null,null,{"$f":"D6","v":"2021-06-30"},{"$f":"E6","v":"2021-09-30"},{"$f":"F6","v":"2021-12-31"},{"$f":"G6","v":"2022-03-31"},{"$f":"H6","v":"2022-06-30"}]
["Выручка","Выручка",null,{"$f":"SUM(D61:D63)","v":0},{"$f":"SUM(E61:E63)","v":0},{"$f":"SUM(F61:F63)","v":0},{"$f":"SUM(G61:G63)","v":0},{"$f":"SUM(H61:H63)","v":0}]
[null,"Продукт / Работа / Услуга"]
[null,"Продукт / Работа / Услуга",null,null,null,null,null,null,null,"При необходимости добавить дополнительную строчку"]
[null,"Продукт / Работа / Услуга"]
["Себестоимость продаж","Себестоимость продаж",null,{"$f":"SUM(D65:D67)","v":0},{"$f":"SUM(E65:E67)","v":0},{"$f":"SUM(F65:F67)","v":0},{"$f":"SUM(G65:G67)","v":0},{"$f":"SUM(H65:H67)","v":0}]
[null,"Продукт / Работа / Услуга"]
[null,"Продукт / Работа / Услуга",null,null,null,null,null,null,null,"При необходимости добавить дополнительную строчку"]
[null,"Продукт / Работа / Услуга"]
["Валовая прибыль (убыток)","Валовая прибыль (убыток)",null,{"$f":"D60-D64","v":0},{"$f":"E60-E64","v":0},{"$f":"F60-F64","v":0},{"$f":"G60-G64","v":0},{"$f":"H60-H64","v":0}]
[]
["Управленческие и коммерческие расходы","Коммерческие расходы",null,{"$f":"SUM(D71:D80)","v":0},{"$f":"SUM(E71:E80)","v":0},{"$f":"SUM(F71:F80)","v":0},{"$f":"SUM(G71:G80)","v":0},{"$f":"SUM(H71:H80)","v":0}]
[null,"Зарплата с начислениями"]
[null,"Аренда и коммунальные услуги"]
[null,"Транспортные расходы"]
[null,"Расходы на рекламу и маркетинг"]
[null,"Связь, административные расходы"]
[null,"Представительские и командировочные расходы"]
[null,"Содержание и ремонт основных средств"]
[null,"Услуги банков (за исключением % по кредитам)"]
[null,"Страховка",null,null,null,null,null,null,null,"При необходимости добавить дополнительную строчку"]
[null,"Прочее"]
["Прибыль (убыток) от продаж","Прибыль (убыток) от продаж",null,{"$f":"D68-D70","v":0},{"$f":"E68-E70","v":0},{"$f":"F68-F70","v":0},{"$f":"G68-G70","v":0},{"$f":"H68-H70","v":0}]
[]
["Проценты к получению","Проценты к получению"]
["Проценты к уплате (% по кредитам и займам)","Проценты к уплате"]
["Прочие доходы","Прочие доходы"]
["Прочие расходы","Прочие расходы"]
["Прибыль (убыток) до налогообложения","Прибыль (убыток) до налогообложения",null,{"$f":"D81+D83-D84+D85-D86","v":0},{"$f":"E81+E83-E84+E85-E86","v":0},{"$f":"F81+F83-F84+F85-F86","v":0},{"$f":"G81+G83-G84+G85-G86","v":0},{"$f":"H81+H83-H84+H85-H86","v":0}]
[]
["Налог на прибыль","Текущий налог на прибыль"]
["Прочее","Прочее"]
["Чистая прибыль (убыток) (без девидендов)","Чистая прибыль (убыток)",null,{"$f":"D87-D89-D90","v":0},{"$f":"E87-E89-E90","v":0},{"$f":"F87-F89-F90","v":0},{"$f":"G87-G89-G90","v":0},{"$f":"H87-H89-H90","v":0}]
[]
["Все сведения, указанные в настоящем отчете  достоверны    "]
[null,null,null,null,"(ФИО)"]
[null,null,null,"М.П."]